[Event "FIDE Women's Grand Swiss 2023"]
[Site "Villa Marina, Douglas, Isle of Man"]
[Date "2023.10.28"]
[Round "4.20"]
[White "Cori T., Deysi"]
[Black "Matnadze Bujiashvili, Ann"]
[Result "1-0"]
[WhiteElo "2367"]
[BlackElo "2400"]
[EventDate "2023.10.25"]
[ECO "E01"]
[PlyCount "81"]
[BlackFideId "13601377"]
[TimeControl "40/90 + 30 + 30s/move"]
[WhiteFideId "3801934"]

1.d4 {[%clk 01:30:53] [%emt 00:00:06]} 1...Nf6 {[%clk 01:30:50] [%emt 00:00:10]} 
2.c4 {[%clk 01:31:02] [%emt 00:00:21]} 2...e6 {[%clk 01:31:15] [%emt 00:00:05]} 
3.g3 {[%clk 01:31:01] [%emt 00:00:31]} 3...d5 {[%clk 01:31:07] [%emt 00:00:38]} 
4.Bg2 {[%clk 01:31:01] [%emt 00:00:29]} 4...Bb4+ {[%clk 01:31:03] [%emt
00:00:34]} 5.Nd2 {[%clk 01:30:45] [%emt 00:00:47]} 5...O-O {[%clk 01:31:08]
[%emt 00:00:25]} 6.Nf3 {[%clk 01:31:03] [%emt 00:00:12]} 6...a5 {[%clk 01:30:25]
[%emt 00:01:13]} 7.O-O {[%clk 01:29:09] [%emt 00:02:25]} 7...b6 {[%clk 01:28:18]
[%emt 00:02:36]} 8.Ne5 {[%clk 01:24:53] [%emt 00:04:46]} 8...Bb7 {[%clk
01:28:23] [%emt 00:00:25]} 9.Qc2 {[%clk 01:23:45] [%emt 00:01:38]} 9...Be7 
{[%clk 01:28:00] [%emt 00:00:53]} 10.Rd1 {[%clk 01:13:35] [%emt 00:10:41]} 
10...Qc8 {[%clk 01:25:00] [%emt 00:03:29]} 11.cxd5 {[%clk 01:01:58] [%emt
00:12:07]} 11...exd5 {[%clk 01:21:03] [%emt 00:04:27]} 12.Ndf3 {[%clk 00:58:57]
[%emt 00:03:30]} 12...c5 {[%clk 01:19:19] [%emt 00:02:14]} 13.Bg5 {[%clk
00:54:57] [%emt 00:04:31]} 13...Na6 {[%clk 01:17:10] [%emt 00:02:39]} 14.a3 
{[%clk 00:51:34] [%emt 00:03:54]} 14...Re8 {[%clk 01:14:18] [%emt 00:03:22]} 
15.Rac1 {[%clk 00:47:55] [%emt 00:04:09]} 15...Ne4 {[%clk 01:11:12] [%emt
00:03:35]} 16.Bxe7 {[%clk 00:38:17] [%emt 00:10:08]} 16...Rxe7 {[%clk 01:11:39]
[%emt 00:00:03]} 17.dxc5 {[%clk 00:38:18] [%emt 00:00:30]} 17...bxc5 {[%clk
01:11:32] [%emt 00:00:36]} 18.Nd3 {[%clk 00:37:12] [%emt 00:01:36]} 18...Qe8 
{[%clk 01:08:12] [%emt 00:03:50]} 19.Nd2 {[%clk 00:31:30] [%emt 00:06:13]} 
19...Nf6 {[%clk 00:52:52] [%emt 00:15:49]} 20.Nxc5 {[%clk 00:29:56] [%emt
00:02:05]} 20...Rc8 {[%clk 00:51:59] [%emt 00:01:22]} 21.b4 {[%clk 00:30:03]
[%emt 00:00:23]} 21...Rxe2 {[%clk 00:50:58] [%emt 00:01:30]} 22.Bf3 {[%clk
00:22:38] [%emt 00:07:56]} 22...Re7 {[%clk 00:51:13] [%emt 00:00:15]} 23.Qb2 
{[%clk 00:18:26] [%emt 00:04:43]} 23...axb4 {[%clk 00:48:06] [%emt 00:03:36]} 
24.axb4 {[%clk 00:18:36] [%emt 00:00:20]} 24...Nxc5 {[%clk 00:41:14] [%emt
00:07:23]} 25.bxc5 {[%clk 00:18:24] [%emt 00:00:42]} 25...Ne4 {[%clk 00:41:09]
[%emt 00:00:34]} 26.Qd4 {[%clk 00:17:42] [%emt 00:01:13]} 26...Ng5 {[%clk
00:35:39] [%emt 00:06:00]} 27.Bg2 {[%clk 00:14:38] [%emt 00:03:34]} 27...Ne6 
{[%clk 00:35:39] [%emt 00:00:30]} 28.Qb4 {[%clk 00:15:00] [%emt 00:00:07]} 
28...Bc6 {[%clk 00:16:22] [%emt 00:19:47]} 29.Nf3 {[%clk 00:15:29] [%emt
00:00:01]} 29...h6 {[%clk 00:14:42] [%emt 00:02:11]} 30.Nh4 {[%clk 00:12:10]
[%emt 00:03:49]} 30...Rb7 {[%clk 00:12:39] [%emt 00:02:33]} 31.Qg4 {[%clk
00:11:42] [%emt 00:00:58]} 31...Qf8 {[%clk 00:09:47] [%emt 00:03:22]} 32.Nf5 
{[%clk 00:11:27] [%emt 00:00:44]} 32...h5 {[%clk 00:10:06] [%emt 00:00:11]} 
33.Qxh5 {[%clk 00:11:18] [%emt 00:00:40]} 33...Nxc5 {[%clk 00:07:18] [%emt
00:03:18]} 34.Nxg7 {[%clk 00:05:34] [%emt 00:06:14]} 34...Nb3 {[%clk 00:04:11]
[%emt 00:03:36]} 35.Nf5 {[%clk 00:02:53] [%emt 00:03:11]} 35...Nxc1 {[%clk
00:03:57] [%emt 00:00:44]} 36.Rd4 {[%clk 00:01:47] [%emt 00:01:37]} 36...Ne2+ 
{[%clk 00:02:21] [%emt 00:02:06]} 37.Qxe2 {[%clk 00:02:15] [%emt 00:00:01]} 
37...Rb1+ {[%clk 00:02:27] [%emt 00:00:24]} 38.Bf1 {[%clk 00:02:44]} 38...Qc5 
{[%clk 00:01:06] [%emt 00:01:51]} 39.Qe5 {[%clk 00:03:01] [%emt 00:00:13]} 
39...f6 {[%clk 00:00:57] [%emt 00:00:39]} 40.Qxf6 {[%clk 00:02:44] [%emt
00:00:47]} 40...Rxf1+ {[%clk 00:00:58] [%emt 00:00:29]} 41.Kxf1 {[%clk 00:03:08]
[%emt 00:00:07]} 1-0

[Event "FIDE Women's Grand Swiss 2023"]
[Site "Villa Marina, Douglas, Isle of Man"]
[Date "2023.10.30"]
[Round "6.4"]
[White "Efroimski, Marsel"]
[Black "Munguntuul, Batkhuyag"]
[Result "1/2-1/2"]
[WhiteElo "2447"]
[BlackElo "2366"]
[EventDate "2023.10.25"]
[ECO "B48"]
[PlyCount "117"]
[BlackFideId "4900758"]
[TimeControl "40/90 + 30 + 30s/move"]
[WhiteFideId "2810964"]

1.e4 {[%clk 01:30:59]} 1...c5 {[%clk 01:30:55] [%emt 00:00:06]} 2.Nf3 {[%clk
01:31:25] [%emt 00:00:04]} 2...e6 {[%clk 01:31:19] [%emt 00:00:05]} 3.d4 {[%clk
01:31:53] [%emt 00:00:03]} 3...cxd4 {[%clk 01:31:44] [%emt 00:00:05]} 4.Nxd4 
{[%clk 01:32:21] [%emt 00:00:02]} 4...Nc6 {[%clk 01:32:06] [%emt 00:00:07]} 
5.Nc3 {[%clk 01:32:47] [%emt 00:00:04]} 5...Qc7 {[%clk 01:32:31] [%emt
00:00:05]} 6.Be3 {[%clk 01:33:13] [%emt 00:00:04]} 6...a6 {[%clk 01:32:56] [%emt
00:00:06]} 7.Qf3 {[%clk 01:33:25] [%emt 00:00:17]} 7...Nf6 {[%clk 01:33:11]
[%emt 00:00:14]} 8.O-O-O {[%clk 01:33:40] [%emt 00:00:15]} 8...Ne5 {[%clk
01:33:25] [%emt 00:00:16]} 9.Qg3 {[%clk 01:34:06] [%emt 00:00:05]} 9...b5 
{[%clk 01:33:45] [%emt 00:00:10]} 10.f4 {[%clk 01:34:22] [%emt 00:00:13]} 
10...Neg4 {[%clk 01:33:57] [%emt 00:00:18]} 11.Bg1 {[%clk 01:34:02] [%emt
00:00:50]} 11...b4 {[%clk 01:28:36] [%emt 00:05:51]} 12.Na4 {[%clk 01:34:18]
[%emt 00:00:15]} 12...h5 {[%clk 01:28:15] [%emt 00:00:51]} 13.e5 {[%clk
01:34:41] [%emt 00:00:08]} 13...Nd5 {[%clk 01:21:38] [%emt 00:07:06]} 14.h3 
{[%emt 00:00:13]} 14...Nh6 {[%clk 01:21:29] [%emt 00:00:30]} 15.f5 {[%clk
01:35:32] [%emt 00:00:04]} 15...Bb7 {[%clk 01:17:40] [%emt 00:04:19]} 16.Bd3 
{[%clk 01:35:52] [%emt 00:00:10]} 16...h4 {[%clk 01:07:35] [%emt 00:10:35]} 
17.Qxh4 {[%clk 01:35:51] [%emt 00:00:32]} 17...Qxe5 {[%clk 01:06:34] [%emt
00:01:30]} 18.fxe6 {[%clk 01:27:58] [%emt 00:08:22]} 18...dxe6 {[%clk 01:04:29]
[%emt 00:02:36]} 19.Qe1 {[%clk 00:56:48] [%emt 00:31:40]} 19...Qxe1 {[%clk
00:55:19] [%emt 00:09:40]} 20.Rxe1 {[%clk 00:57:17]} 20...Ng4 {[%clk 00:54:51]
[%emt 00:00:58]} 21.Bf5 {[%clk 00:40:29] [%emt 00:17:18]} 21...Ngf6 {[%clk
00:54:03] [%emt 00:01:17]} 22.Nxe6 {[%clk 00:34:37] [%emt 00:06:22]} 22...fxe6 
{[%clk 00:50:29] [%emt 00:04:03]} 23.Bxe6 {[%clk 00:35:01] [%emt 00:00:06]} 
23...Ne7 {[%clk 00:41:08] [%emt 00:09:51]} 24.Bc5 {[%clk 00:32:31] [%emt
00:03:01]} 24...Rd8 {[%clk 00:29:04] [%emt 00:12:34]} 25.Re2 {[%clk 00:19:41]
[%emt 00:13:20]} 25...Rh4 {[%clk 00:27:37] [%emt 00:01:57]} 26.Rhe1 {[%clk
00:15:48] [%emt 00:04:23]} 26...Re4 {[%clk 00:27:52] [%emt 00:00:15]} 27.g4 
{[%clk 00:14:48] [%emt 00:01:30]} 27...Rxe2 {[%clk 00:24:45] [%emt 00:03:38]} 
28.Rxe2 {[%clk 00:15:17]} 28...g6 {[%clk 00:24:57] [%emt 00:00:18]} 29.g5 
{[%clk 00:12:09] [%emt 00:03:37]} 29...Ne4 {[%clk 00:25:20] [%emt 00:00:06]} 
30.Bxb4 {[%clk 00:12:24] [%emt 00:00:15]} 30...Nxg5 {[%clk 00:24:42] [%emt
00:01:08]} 31.Bc4 {[%clk 00:07:29] [%emt 00:05:26]} 31...Nxh3 {[%clk 00:22:37]
[%emt 00:02:34]} 32.b3 {[%clk 00:07:55] [%emt 00:00:04]} 32...Nf4 {[%clk
00:22:38] [%emt 00:00:29]} 33.Re1 {[%clk 00:08:04] [%emt 00:00:21]} 33...Nd5 
{[%clk 00:21:45] [%emt 00:01:23]} 34.Bd2 {[%clk 00:07:57] [%emt 00:00:36]} 
34...Bg7 {[%clk 00:17:47] [%emt 00:04:28]} 35.Nc5 {[%clk 00:08:10] [%emt
00:00:17]} 35...Bc8 {[%clk 00:17:48] [%emt 00:00:29]} 36.Nxa6 {[%clk 00:06:36]
[%emt 00:02:04]} 36...Bxa6 {[%clk 00:16:11] [%emt 00:02:07]} 37.Bxa6 {[%clk
00:07:05] [%emt 00:00:02]} 37...Nc3 {[%clk 00:16:07] [%emt 00:00:34]} 38.a3 
{[%clk 00:02:18] [%emt 00:05:17]} 38...Ra8 {[%clk 00:07:47] [%emt 00:08:50]} 
39.Re6 {[%clk 00:01:22] [%emt 00:01:27]} 39...Kd7 {[%clk 00:06:18] [%emt
00:01:58]} 40.Rb6 {[%clk 00:01:43] [%emt 00:00:08]} 40...Bd4 {[%clk 00:02:46]
[%emt 00:04:02]} 41.Rb7+ {[%clk 00:28:57] [%emt 00:03:16]} 41...Kc6 {[%clk
00:31:36] [%emt 00:01:39]} 42.Rxe7 {[%clk 00:26:53] [%emt 00:02:34]} 42...Rxa6 
{[%clk 00:32:03] [%emt 00:00:03]} 43.Re6+ {[%clk 00:16:55] [%emt 00:10:29]} 
43...Kb7 {[%clk 00:32:07] [%emt 00:00:26]} 44.Rxa6 {[%clk 00:15:45] [%emt
00:01:40]} 44...Kxa6 {[%clk 00:32:35] [%emt 00:00:02]} 45.Bxc3 {[%clk 00:11:18]
[%emt 00:04:57]} 45...Bxc3 {[%clk 00:33:02] [%emt 00:00:03]} 46.Kd1 {[%clk
00:11:45] [%emt 00:00:03]} 46...Kb5 {[%clk 00:31:47] [%emt 00:01:45]} 47.Ke2 
{[%clk 00:12:12] [%emt 00:00:03]} 47...Kc6 {[%clk 00:26:32] [%emt 00:05:46]} 
48.Kd3 {[%clk 00:12:39] [%emt 00:00:04]} 48...Bb2 {[%clk 00:26:45] [%emt
00:00:17]} 49.a4 {[%clk 00:13:05] [%emt 00:00:04]} 49...Kd5 {[%clk 00:23:03]
[%emt 00:04:11]} 50.c4+ {[%clk 00:11:36] [%emt 00:01:59]} 50...Kc5 {[%clk
00:20:29] [%emt 00:03:04]} 51.Ke4 {[%clk 00:12:03] [%emt 00:00:04]} 51...Bc3 
{[%clk 00:20:08] [%emt 00:00:50]} 52.Kf4 {[%clk 00:12:27] [%emt 00:00:05]} 
52...Bd2+ {[%clk 00:20:32] [%emt 00:00:07]} 53.Ke5 {[%clk 00:12:54] [%emt
00:00:03]} 53...Kb4 {[%clk 00:19:31] [%emt 00:01:31]} 54.Kf6 {[%clk 00:13:10]
[%emt 00:00:14]} 54...g5 {[%clk 00:19:51] [%emt 00:00:10]} 55.Kf5 {[%clk
00:13:37] [%emt 00:00:03]} 55...Kxb3 {[%clk 00:19:42] [%emt 00:00:39]} 56.a5 
{[%clk 00:12:40] [%emt 00:01:27]} 56...Kxc4 {[%clk 00:20:00] [%emt 00:00:12]} 
57.a6 {[%clk 00:13:07] [%emt 00:00:03]} 57...Be3 {[%clk 00:20:20] [%emt
00:00:09]} 58.a7 {[%clk 00:13:34] [%emt 00:00:04]} 58...Bxa7 {[%clk 00:20:48]
[%emt 00:00:02]} 59.Kxg5 {[%clk 00:14:00] [%emt 00:00:04]} 1/2-1/2

[Event "FIDE Women's Grand Swiss 2023"]
[Site "Villa Marina, Douglas, Isle of Man"]
[Date "2023.11.01"]
[Round "7.11"]
[White "Paehtz, Elisabeth"]
[Black "Narva, Mai"]
[Result "1/2-1/2"]
[WhiteElo "2484"]
[BlackElo "2399"]
[EventDate "2023.10.25"]
[ECO "B20"]
[PlyCount "89"]
[BlackClock "00:26:40"]
[BlackFideId "4500512"]
[TimeControl "40/90 + 30 + 30s/move"]
[WhiteClock "00:16:41"]
[WhiteFideId "4641833"]

1.e4 {[%clk 01:30:50][%emt 00:00:09]} 1...c5 {[%clk 01:30:48][%emt 00:00:12]} 
2.Nf3 {[%clk 01:31:13][%emt 00:00:08]} 2...Nc6 {[%clk 01:31:04][%emt 00:00:14]} 
3.Bc4 {[%clk 01:31:39][%emt 00:00:05]} 3...e6 {[%clk 01:22:00][%emt 00:09:33]} 
4.O-O {[%clk 01:31:42][%emt 00:00:27]} 4...Nge7 {[%clk 01:04:45][%emt 00:17:44]} 
5.Re1 {[%clk 01:30:42][%emt 00:01:31]} 5...Ng6 {[%clk 01:02:20][%emt 00:02:55]} 
6.c3 {[%clk 01:27:12][%emt 00:04:00]} 6...Be7 {[%clk 01:00:49][%emt 00:01:59]} 
7.d4 {[%clk 01:27:03][%emt 00:00:39]} 7...d5 {[%clk 00:59:11][%emt 00:02:08]} 
8.exd5 {[%clk 01:16:48][%emt 00:10:45]} 8...exd5 {[%clk 00:59:28][%emt
00:00:13]} 9.Bf1 {[%clk 01:14:23][%emt 00:02:54]} 9...cxd4 {[%clk 00:48:41][%emt
00:11:17]} 10.Nxd4 {[%clk 01:12:22][%emt 00:02:32]} 10...O-O {[%clk
00:47:52][%emt 00:01:18]} 11.Be3 {[%clk 01:07:27][%emt 00:05:25]} 11...Nce5 
{[%clk 00:40:05][%emt 00:08:17]} 12.Nd2 {[%clk 01:05:24][%emt 00:02:34]} 
12...Ng4 {[%clk 00:37:36][%emt 00:02:58]} 13.N2f3 {[%clk 01:05:44][%emt
00:00:09]} 13...Bd6 {[%clk 00:34:08][%emt 00:03:59]} 14.Qd2 {[%clk
00:56:25][%emt 00:09:50]} 14...Bd7 {[%clk 00:24:20][%emt 00:10:18]} 15.Bg5 
{[%clk 00:43:25][%emt 00:13:30]} 15...Qa5 {[%clk 00:14:41][%emt 00:10:09]} 
16.h3 {[%clk 00:40:51][%emt 00:03:04]} 16...N4e5 {[%clk 00:05:40][%emt
00:09:31]} 17.Nxe5 {[%clk 00:39:23][%emt 00:01:58]} 17...Nxe5 {[%clk
00:05:38][%emt 00:00:32]} 18.Nb3 {[%clk 00:38:08][%emt 00:01:45]} 18...Qc7 
{[%clk 00:05:48][%emt 00:00:20]} 19.Qxd5 {[%clk 00:37:44][%emt 00:00:54]} 
19...Be6 {[%clk 00:05:55][%emt 00:00:23]} 20.Qd1 {[%clk 00:32:17][%emt
00:05:57]} 20...h6 {[%clk 00:05:46][%emt 00:00:38]} 21.Bf4 {[%clk 00:30:40][%emt
00:02:07]} 21...a6 {[%clk 00:04:17][%emt 00:01:59]} 22.Nd4 {[%clk 00:30:50][%emt
00:00:21]} 22...Bd7 {[%clk 00:04:40][%emt 00:00:07]} 23.Bg3 {[%clk
00:30:01][%emt 00:01:19]} 23...Rae8 {[%clk 00:03:39][%emt 00:01:31]} 24.Qb3 
{[%clk 00:25:13][%emt 00:05:19]} 24...Kh8 {[%clk 00:03:53][%emt 00:00:16]} 
25.Qd5 {[%clk 00:23:36][%emt 00:02:08]} 25...f5 {[%clk 00:03:13][%emt 00:01:09]} 
26.Bxe5 {[%clk 00:20:18][%emt 00:03:48]} 26...Bxe5 {[%clk 00:03:13][%emt
00:00:30]} 27.Rad1 {[%clk 00:19:16][%emt 00:01:32]} 27...f4 {[%clk
00:02:45][%emt 00:00:58]} 28.Nf3 {[%clk 00:13:20][%emt 00:06:26]} 28...Bc6 
{[%clk 00:03:02][%emt 00:00:13]} 29.Qd3 {[%clk 00:13:36][%emt 00:00:13]} 
29...Bf6 {[%clk 00:03:04][%emt 00:00:28]} 30.Qg6 {[%clk 00:13:28][%emt
00:00:38]} 30...Qf7 {[%clk 00:02:11][%emt 00:01:23]} 31.Rxe8 {[%clk
00:08:38][%emt 00:05:21]} 31...Qxe8 {[%clk 00:00:36][%emt 00:02:05]} 32.Qxe8 
{[%clk 00:05:21][%emt 00:03:48]} 32...Rxe8 {[%clk 00:01:01][%emt 00:00:05]} 
33.Nd4 {[%clk 00:05:35][%emt 00:00:16]} 33...Bd5 {[%clk 00:00:46][%emt
00:00:45]} 34.a3 {[%clk 00:05:06][%emt 00:00:59]} 34...b5 {[%clk 00:00:34][%emt
00:00:41]} 35.Bd3 {[%clk 00:03:26][%emt 00:02:10]} 35...Rd8 {[%clk
00:00:41][%emt 00:00:22]} 36.Bg6 {[%clk 00:03:09][%emt 00:00:47]} 36...Kg8 
{[%clk 00:00:45][%emt 00:00:27]} 37.Re1 {[%clk 00:01:43][%emt 00:01:57]} 
37...Bxd4 {[%clk 00:00:40][%emt 00:00:36]} 38.cxd4 {[%clk 00:02:08][%emt
00:00:05]} 38...Bf7 {[%clk 00:00:59][%emt 00:00:10]} 39.Bxf7+ {[%clk
00:01:37][%emt 00:01:01]} 39...Kxf7 {[%clk 00:01:25][%emt 00:00:04]} 40.Rd1 
{[%clk 00:01:58][%emt 00:00:10]} 40...Rc8 {[%clk 00:00:44][%emt 00:01:11]} 
41.Rd2 {[%clk 00:01:37][%emt 00:00:51]} 41...Rc1+ {[%clk 00:00:43][%emt
00:00:30]} 42.Kh2 {[%clk 00:02:05][%emt 00:00:03]} 42...Ke6 {[%clk
00:00:39][%emt 00:00:33]} 43.g3 {[%clk 00:29:17][%emt 00:03:18]} 43...fxg3+ 
{[%clk 00:29:23][%emt 00:01:46]} 44.Kxg3 {[%clk 00:29:35][%emt 00:00:12]} 
44...Kd5 {[%clk 00:29:20][%emt 00:00:32]} 45.Kf4 {[%clk 00:16:41][%emt
00:13:25]} 1/2-1/2

[Event "FIDE Women's Grand Swiss 2023"]
[Site "Villa Marina, Douglas, Isle of Man"]
[Date "2023.11.01"]
[Round "7.12"]
[White "Injac, Teodora"]
[Black "Batsiashvili, Nino"]
[Result "1/2-1/2"]
[WhiteElo "2426"]
[BlackElo "2475"]
[EventDate "2023.10.25"]
[ECO "E15"]
[PlyCount "99"]
[BlackClock "01:32:36"]
[BlackFideId "13602993"]
[ReferenceTime "W/2023-11-01T14:37:23.297Z"]
[TimeControl "40/90 + 30 + 30s/move"]
[WhiteClock "01:27:07"]
[WhiteFideId "932400"]

1.d4 {[%clk 01:30:57][%emt 00:00:01]} 1...Nf6 {[%clk 01:30:55][%emt 00:00:05]} 
2.Nf3 {[%clk 01:31:15][%emt 00:00:13]} 2...e6 {[%clk 01:31:08][%emt 00:00:17]} 
3.c4 {[%clk 01:31:32][%emt 00:00:13]} 3...b6 {[%clk 01:31:34][%emt 00:00:04]} 
4.g3 {[%clk 01:29:36][%emt 00:02:26]} 4...Bb4+ {[%clk 01:31:55][%emt 00:00:08]} 
5.Bd2 {[%clk 01:28:49][%emt 00:01:17]} 5...Bxd2+ {[%clk 01:32:13][%emt
00:00:12]} 6.Qxd2 {[%clk 01:27:08][%emt 00:02:12]} 6...Ba6 {[%clk 01:32:36][%emt
00:00:07]} 7.b3 O-O {[%clk 01:32:36]} 8.Bg2 d5 {[%clk 01:32:36]} 9.Nc3 c5 
{[%clk 01:32:36]} 10.O-O Nc6 {[%clk 01:32:36]} 11.Rfd1 dxc4 {[%clk 01:32:36]} 
12.Ne5 Nxd4 {[%clk 01:32:36]} 13.e3 Nf5 {[%clk 01:32:36]} 14.Nxc4 ( 14.Ne4 Qxd2 
{[%clk 01:32:36]} 15.Rxd2 Rad8 {[%clk 01:32:36]} ) 14...Qxd2 {[%clk 01:32:36]} 
15.Rxd2 Rad8 {[%clk 01:32:36]} 16.Rad1 Rxd2 {[%clk 01:32:36]} 17.Rxd2 Rc8 
{[%clk 01:32:36]} 18.Ne5 Ne7 {[%clk 01:32:36]} 19.g4 Nfd5 {[%clk 01:32:36]} 
20.Nxd5 exd5 {[%clk 01:32:36]} 21.Bxd5 Nxd5 {[%clk 01:32:36]} 22.Rxd5 f6 {[%clk
01:32:36]} 23.Nc4 b5 {[%clk 01:32:36]} 24.Na3 Bb7 {[%clk 01:32:36]} 25.Rd7 Bc6 
{[%clk 01:32:36]} 26.Rxa7 c4 {[%clk 01:32:36]} 27.bxc4 bxc4 {[%clk 01:32:36]} 
28.Nb1 Bf3 {[%clk 01:32:36]} 29.Nc3 Bxg4 {[%clk 01:32:36]} 30.Kg2 Rd8 {[%clk
01:32:36]} 31.Kg3 Be6 {[%clk 01:32:36]} 32.Nb5 Rd1 {[%clk 01:32:36]} 33.Nd4 
Rg1+ {[%clk 01:32:36]} ( 33...Bd5 {[%clk 01:32:36]} 34.Nf5 g5 {[%clk 01:32:36]} 
35.f4 Kh8 {[%clk 01:32:36]} 36.Rc7 ) 34.Kf4 g5+ {[%clk 01:32:36]} 35.Ke4 Bh3 
{[%clk 01:32:36]} 36.Rc7 Rg2 {[%clk 01:32:36]} 37.f4 Rxh2 {[%clk 01:32:36]} 
38.a4 Ra2 {[%clk 01:32:36]} 39.Rxc4 gxf4 {[%clk 01:32:36]} 40.exf4 Kg7 {[%clk
01:32:36]} 41.Nf5+ Kg6 {[%clk 01:32:36]} 42.Ne7+ Kf7 {[%clk 01:32:36]} 43.Nf5 
Bg2+ {[%clk 01:32:36]} 44.Kd4 Bf1 {[%clk 01:32:36]} 45.Rc7+ Kf8 {[%clk
01:32:36]} 46.Rc8+ Kf7 {[%clk 01:32:36]} 47.Rc7+ Kf8 {[%clk 01:32:36]} 48.Rc8+ 
Kf7 {[%clk 01:32:36]} 49.Rc7+ Kg8 {[%clk 01:32:36]} 50.Rc8+ 1/2-1/2

[Event "FIDE Women's Grand Swiss 2023"]
[Site "Villa Marina, Douglas, Isle of Man"]
[Date "2023.11.01"]
[Round "7.22"]
[White "Divya, Deshmukh"]
[Black "Aulia, Medina Warda"]
[Result "0-1"]
[WhiteElo "2408"]
[BlackElo "2362"]
[EventDate "2023.10.25"]
[ECO "D32"]
[PlyCount "78"]
[BlackFideId "7101570"]
[TimeControl "40/90 + 30 + 30s/move"]
[WhiteFideId "35006916"]

1.d4 {[%clk 01:30:58][%emt 00:00:01]} 1...d5 {[%clk 01:30:48][%emt 00:00:13]} 
2.c4 {[%clk 01:31:20][%emt 00:00:07]} 2...e6 {[%clk 01:31:14][%emt 00:00:05]} 
3.Nc3 {[%clk 01:31:44][%emt 00:00:06]} 3...c5 {[%clk 01:31:39][%emt 00:00:05]} 
4.cxd5 {[%clk 01:32:02][%emt 00:00:04]} 4...exd5 {[%clk 01:32:06][%emt
00:00:11]} 5.Nf3 {[%clk 01:32:25][%emt 00:00:07]} 5...Nf6 {[%clk 01:32:30][%emt
00:00:07]} 6.Bg5 {[%clk 01:32:51][%emt 00:00:03]} 6...Be6 {[%clk 01:32:55][%emt
00:00:05]} 7.Qa4+ {[%clk 01:33:18][%emt 00:00:03]} 7...Nc6 {[%clk 01:30:08][%emt
00:03:17]} 8.e3 {[%clk 01:33:28][%emt 00:00:20]} 8...Be7 {[%clk 01:26:53][%emt
00:03:47]} 9.Bb5 {[%clk 01:30:10][%emt 00:03:47]} 9...Qb6 {[%clk 01:25:55][%emt
00:01:29]} 10.O-O {[%clk 01:26:19][%emt 00:04:20]} 10...O-O {[%clk
01:26:13][%emt 00:00:12]} 11.Bxc6 {[%clk 01:26:43][%emt 00:00:06]} 11...bxc6 
{[%clk 01:25:57][%emt 00:00:46]} 12.Qc2 {[%clk 01:27:06][%emt 00:00:06]} 
12...cxd4 {[%clk 01:25:12][%emt 00:01:16]} 13.Nxd4 {[%clk 01:26:30][%emt
00:01:06]} 13...c5 {[%clk 01:24:18][%emt 00:01:23]} 14.Bxf6 {[%clk
01:26:06][%emt 00:00:55]} 14...Bxf6 {[%clk 01:23:47][%emt 00:01:02]} 15.Na4 
{[%clk 01:18:41][%emt 00:07:55]} 15...Qa5 {[%clk 01:24:11][%emt 00:00:05]} 
16.Nxc5 {[%clk 01:01:16][%emt 00:17:54]} 16...Rfc8 {[%clk 01:24:36][%emt
00:00:05]} 17.Rfc1 {[%clk 01:01:35][%emt 00:00:12]} 17...Be7 {[%clk
01:24:59][%emt 00:00:07]} 18.Ndb3 {[%clk 01:00:23][%emt 00:01:41]} 18...Qb6 
{[%clk 01:25:24][%emt 00:00:05]} 19.Qc3 {[%clk 01:00:16][%emt 00:00:38]} 
19...Rab8 {[%clk 01:25:50][%emt 00:00:05]} 20.f4 {[%clk 00:24:29][%emt
00:36:16]} 20...h6 {[%clk 01:13:20][%emt 00:13:00]} 21.Qd4 {[%clk 00:15:24][%emt
00:09:35]} 21...Bxc5 {[%clk 01:08:59][%emt 00:04:51]} 22.Nxc5 {[%clk
00:15:41][%emt 00:00:14]} 22...Qxb2 {[%clk 01:09:23][%emt 00:00:05]} 23.Qd3 
{[%clk 00:14:11][%emt 00:01:59]} 23...Rb6 {[%clk 01:06:53][%emt 00:03:00]} ( 
23...Rxc5 24.Rcb1 Rc2 25.Rxb2 Rbxb2 26.Qf1 Bf5 ) 24.Qd1 {[%clk 00:09:04][%emt
00:05:37]} 24...Rbc6 {[%clk 00:56:02][%emt 00:11:22]} 25.Nd3 {[%clk
00:03:22][%emt 00:06:11]} 25...Qa3 {[%clk 00:55:08][%emt 00:01:25]} 26.Rxc6 
{[%clk 00:01:24][%emt 00:02:27]} 26...Rxc6 {[%clk 00:55:34][%emt 00:00:05]} 
27.Rb1 {[%clk 00:01:52][%emt 00:00:02]} 27...Bf5 {[%clk 00:51:35][%emt
00:04:29]} 28.Rb3 {[%clk 00:01:15][%emt 00:01:07]} 28...Qa5 {[%clk
00:51:59][%emt 00:00:05]} 29.Nb4 {[%clk 00:01:22][%emt 00:00:24]} 29...Rd6 
{[%clk 00:51:57][%emt 00:00:33]} 30.Qd4 {[%clk 00:00:36][%emt 00:01:16]} 
30...Be4 {[%clk 00:52:16][%emt 00:00:10]} 31.h3 {[%clk 00:00:35][%emt 00:00:31]} 
31...Rg6 {[%clk 00:51:09][%emt 00:01:37]} 32.Rb2 {[%clk 00:00:41][%emt
00:00:24]} 32...Qc7 {[%clk 00:51:28][%emt 00:00:11]} 33.Kh2 {[%clk
00:00:56][%emt 00:00:15]} 33...Qc4 {[%clk 00:49:37][%emt 00:02:21]} 34.f5 
{[%clk 00:00:36][%emt 00:00:50]} 34...Rf6 {[%clk 00:47:03][%emt 00:03:04]} 
35.Qxa7 {[%clk 00:00:38][%emt 00:00:29]} 35...Rxf5 {[%clk 00:47:24][%emt
00:00:08]} 36.Qb8+ {[%clk 00:00:51][%emt 00:00:17]} 36...Kh7 {[%clk
00:47:49][%emt 00:00:04]} 37.Qg3 {[%clk 00:00:35][%emt 00:00:46]} 37...Qc3 
{[%clk 00:45:32][%emt 00:02:48]} 38.Rb3 {[%clk 00:00:36][%emt 00:00:30]} 
38...Qf6 {[%clk 00:45:49][%emt 00:00:12]} 39.Ra3 {[%clk 00:00:32][%emt
00:00:35]} 39...Rg5 {[%clk 00:46:03][%emt 00:00:15]} 0-1